{"text_format":"1","workbook":"xlsx","n_sheets":1,"sheets":["CF_D"],"not_rendered":{"charts":0,"images":0,"macros":0,"external_links":0,"defined_names":1,"comments":0,"pivot_tables":0},"unopened":[],"bounds":{"document_bytes":16777216,"sheet_cells":100000,"rows_first":2000,"rows_last":500,"rows_between":2000,"halvings":0,"cell_chars":16384,"cell_head_chars":4096},"cells_cut":0,"cells_raw":0,"read":"whole","date_system":"1900"}

{"sheet":"CF_D","index":0,"n_rows":49,"n_cols":4,"rows_kept":49,"cut":false,"hidden":false,"merged":[[2,1,2,2]]}
[]
[null,"Konzern-Kapitalflussrechnung (IFRS)"]
[null,"vom 1. Oktober 2017 bis 31. März 2018"]
[null,null,"2017/18\n1.10.17 bis 31.3.18","2016/17\n1.10.16 bis 31.3.17"]
[null,null,"Tsd. €","Tsd. €"]
[null,"Cashflow aus der gewöhnlichen Geschäftstätigkeit:"]
[null,"Konzernergebnis",{"$f":"56031+262","v":56293},{"$f":"61738+2087","v":63825}]
[null,"Anpassung zur Überleitung des Konzernergebnisses zur Nettoveränderung \nder liquiden Mittel aus laufender Geschäftstätigkeit:"]
[null,"Ertragsteueraufwand",27652,29147]
[null,"Zinserträge / Zinsaufwendungen",1139,743]
[null,"Ergebnis aus der Veräußerung der rechtlichen Einheit/ des hydrophilen IOL-Geschäftes Aaren Scientific Inc.",-2499,-7721]
[null,"Abschreibungen",13076,11186]
[null,"Gewinne/Verluste aus Abgang/Abwertung von Anlagevermögen",1763,-18]
[null,"Erhaltene Zinsen",366,384]
[null,"Gezahlte Zinsen",-1161,-707]
[null,"Erstattete Ertragsteuern",519,5476]
[null,"Gezahlte Ertragsteuern",-26200,-33875]
[null,"Veränderungen des Working Capitals:"]
[null,"Forderungen aus Lieferungen und Leistungen",-14826,-24419]
[null,"Vorräte",-18883,-18559]
[null,"Sonstige Vermögenswerte",17183,1355]
[null,"Verbindlichkeiten aus Lieferungen und Leistungen",-14147,-92]
[null,"Rückstellungen und finanzielle Verbindlichkeiten",{"$f":"-6072","v":-6072},-5896]
[null,"Sonstige Verbindlichkeiten",159,-4340]
[null,"Gesamte Anpassungen",{"$f":"SUM(C9:C24)","v":-21931},{"$f":"SUM(D9:D24)","v":-47336}]
[null,"Netto-Kapitalzufluss/(-abfluss) aus der gewöhnlichen Geschäftstätigkeit",{"$f":"+C7+C25","v":34362},{"$f":"+D7+D25","v":16489}]
[null,"Cashflow aus der Investitionstätigkeit:"]
[null,"Investitionen in Sachanlagen",-6652,-5974]
[null,"Investitionen in sonstige immaterielle Vermögenswerte",-6897,-7657]
[null,"Erlöse aus dem Verkauf von Anlagevermögen",205,224]
[null,"Auszahlungen für sonstige Ausleihungen",0,{"$f":"-2131-269","v":-2400}]
[null,"Investitionen/ Devestitionen in Wertpapiere",1855,0]
[null,"Erwerb von Anteilen an verbundenen nicht-konsolidierten Unternehmen",0,{"$f":"-(4128+4472+5750)/1.0573","v":-13572.306819256599}]
[null,"Einzahlungen aus der Veräußerung der rechtlichen Einheit/ des hydrophilen IOL-Geschäftes Aaren Scientific Inc.",2548,9289]
[null,"Netto-Kapitalzufluss/(-abfluss) aus der Investitionstätigkeit",{"$f":"SUM(C28:C34)","v":-8941},{"$f":"SUM(D28:D34)","v":-20090.306819256599}]
[null,"Cashflow aus der Finanzierungsstätigkeit:"]
[null,"Aufnahme/(Rückzahlung) der kurzfristigen Kredite",{"$f":"-87+15","v":-72},-193]
[null,"Aufnahme/(Rückzahlung) der langfristigen Kredite",{"$f":"-232-15","v":-247},-343]
[null,"(Zunahme)/Abnahme der Forderungen aus Finanzausgleich",{"$f":"23481-1427","v":22054},-322769]
[null,"Zunahme/(Abnahme) der Verbindlichkeiten aus Finanzausgleich",{"$f":"-39788+1427","v":-38361},14449]
[null,"Zunahme/(Abnahme) der Verbindlichkeiten aus Finanzierungsleasing",-1384,-1499]
[null,"Dividendenzahlung an nicht-beherrschende Gesellschafter",-5551,0]
[null,"Einzahlungen aus Kapitalerhöhung (netto)",0,{"$f":"(8130.96*38.94)-(8130.96*38.94)*0.005","v":315036.48448799993}]
[null,"Netto-Kapitalzufluss/(-abfluss) aus der Finanzierungsstätigkeit",{"$f":"SUM(C37:C43)","v":-23561},{"$f":"SUM(D37:D43)","v":4681.4844879999291}]
[null,"Einfluss von Wechselkursänderungen auf Zahlungsmittel und Zahlungsmitteläquivalente",-134,{"$f":"174-656","v":-482}]
[null,"Zunahme/(Abnahme) der Zahlungsmittel und Zahlungsmitteläquivalente",{"$f":"+C26+C35+C44+C45","v":1726},{"$f":"+D26+D35+D44+D45","v":598.17766874333029}]
[null,"Zahlungsmittel und Zahlungsmitteläquivalente am Beginn des Berichtszeitraumes",3925,8710]
[null,"Zahlungsmittel und Zahlungsmitteläquivalente am Ende des Berichtszeitraumes",{"$f":"+C46+C47","v":5651},{"$f":"+D46+D47","v":9308.1776687433303}]
[null,"Der nachfolgende Konzernanhang ist integraler Bestandteil des ungeprüften Konzernabschlusses."]